Workbook

Sheet Sheet1 (hidden)
B2: ANALYZER DIFFICULTY INDEX
A4: ITEM | B4: ANAYZER TYPE | C4: DETECTOR TYPE | D4: MANUFACTURER | E4: NUMBER OF ANALYZERS | F4: CYCLE TIME IN MINUTES. FOR CONTINUOUS ANALYZER = 1 | G4: NONE = 1 PACKED COLUMNS = 1.5 CAPILLARY COLUMNS = 2 | H4: APPLICATION 1=CONTINUOUS 2= BACKFLUSH 3=HEARTCUT/BACKFLUSH 4=REVERSE COLUMN STEP | I4: # OF COMPONENTS MEASURED | J4: # OF STREAMS | K4: VAPOR SAMPLE PHASE = 1 LIQUID SAMPLE PHASE = 2 | L4: IN SHELTER =1 OR OUT OF SHELTER = 2 | M4: DIFFICULTY FACTOR | N4: MANHOURS PER YEAR TO MAINTAIN | O4: TOTAL MANHOURS
A6: 1 | B6: CALORIMETER | C6: THERMAL | D6: COSA, THERMO, UNION | E6: 0 | F6: 1 | G6: 1 | H6: 1 | I6: 1 | J6: 1 | K6: 1 | L6: 1 | M6: =(10*F6*G6*H6*I6*J6*K6*L6)/10 -> 1 | N6: =(M6*52)*0.5 -> 26 | O6: =E6*N6 -> 0
A7: =A6+1 -> 2 | B7: CEMS | C7: I/R-UV-CHEM | D7: ABB, CALIFORNIA ANALYTICAL, EMERSON, SIEMENS, SERVOMEX, THERMO | E7: 0 | F7: 1 | G7: 1 | H7: 1 | I7: 1 | J7: 1 | K7: 1 | L7: 1 | M7: =(10*F7*G7*H7*I7*J7*K7*L7)/10 -> 1 | N7: =(M7*52)*1.6 -> 83.2 | O7: =E7*N7 -> 0
A8: =A7+1 -> 3 | B8: COLORIMETER | C8: OPTICAL | E8: 0 | F8: 1 | G8: 1 | H8: 1 | I8: 1 | J8: 1 | K8: 1 | L8: 1 | M8: =(10*F8*G8*H8*I8*J8*K8*L8)/10 -> 1 | N8: =(M8*52)*0.4 -> 20.8 | O8: 0
A9: 4 | B9: CONDUCTIVITY | C9: ELECTROCHEMICAL | D9: EMERSON, METTLER-TOLEDO, YOKOGAWA | E9: 0 | F9: 1 | G9: 1 | H9: 1 | I9: 1 | J9: 1 | K9: 1 | L9: 1 | M9: =(10*F9*G9*H9*I9*J9*K9*L9)/10 -> 1 | N9: =(M9*52)*0.4 -> 20.8 | O9: 0
A10: 5 | B10: DENSITY | C10: VARIOUS | E10: 0 | F10: 1 | G10: 1 | H10: 1 | I10: 1 | J10: 1 | K10: 1 | L10: 1 | M10: 1 | N10: =(M10*52)*0.5 -> 26 | O10: 0
A11: 6 | B11: DISSOLVED OXYGEN | C11: ELECTROCHEMICAL | D11: EMERSON, ENDRESS-HAUSER, YOKOGAWA | E11: 0 | F11: 1 | G11: 1 | H11: 1 | I11: 1 | J11: 1 | K11: 1 | L11: 1 | M11: 1 | N11: =(M11*52)*0.8 -> 41.6 | O11: 0
A12: 7 | B12: GAS CHROMATOGRAPH | C12: TCD | D12: ABB, EMERSON, SIEMENS, YOKOGAWA, OTHER | E12: 1 | F12: 5 | G12: 1.5 | H12: 2 | I12: 1 | J12: 1 | K12: 1 | L12: 1 | M12: 15 | N12: =(M12*52)*0.35 -> 273 | O12: 273
A13: 8 | B13: GAS CHROMATOGRAPH | C13: FID | D13: ABB, EMERSON, SIEMENS, YOKOGAWA, OTHER | E13: 0 | F13: 5 | G13: 1.5 | H13: 2 | I13: 1 | J13: 1 | K13: 1 | L13: 1 | M13: 15 | N13: =(M13*52)*0.3 -> 234 | O13: 0
A14: 9 | B14: GAS CHROMATOGRAPH | C14: FPD | D14: ABB, EMERSON, SIEMENS, YOKOGAWA, OTHER | E14: 0 | F14: 5 | G14: 1.5 | H14: 2 | I14: 1 | J14: 1 | K14: 1 | L14: 1 | M14: 15 | N14: =(M14*52)*0.3 -> 234 | O14: 0
A15: 10 | B15: GAS CHROMATOGRAPH | C15: OTHER | D15: ABB, EMERSON, SIEMENS, YOKOGAWA, OTHER | E15: 0 | F15: 5 | G15: 1.5 | H15: 2 | I15: 1 | J15: 1 | K15: 1 | L15: 1 | M15: 15 | N15: =(M15*52)*0.3 -> 234 | O15: 0
A16: 11 | B16: GAS DETECTION | C16: BEAD | D16: DETRONICS, GENERAL MONITOR, MSA | E16: 0 | F16: 1 | G16: 1 | H16: 1 | I16: 1 | J16: 1 | K16: 1 | L16: 1 | M16: 1 | N16: =(M16*52)*0.35 -> 18.2 | O16: 0
A17: 12 | B17: HARDNESS | C17: VARIOUS | E17: 0 | F17: 1 | G17: 1 | H17: 1 | I17: 1 | J17: 1 | K17: 1 | L17: 1 | M17: 1 | N17: =(M17*52)*0.5 -> 26 | O17: 0
A18: 13 | B18: MOISTURE IN VAPOR | C18: VARIOUS | D18: COSA, PANAMETRICS, SHAW, OTHER | E18: 0 | F18: 1 | G18: 1 | H18: 1 | I18: 1 | J18: 1 | K18: 1 | L18: 1 | M18: 1 | N18: =(M18*52)*0.55 -> 28.6 | O18: 0
A19: 14 | B19: MOISTURE IN LIQUID | C19: VARIOUS | D19: COSA, PANAMETRICS, SHAW, OTHER | E19: 0 | F19: 1 | G19: 1 | H19: 1 | I19: 1 | J19: 1 | K19: 1 | L19: 1 | M19: 1 | N19: =(M19*52)*0.55 -> 28.6 | O19: 0
A20: 15 | B20: OIL IN WATER | C20: VARIOUS | E20: 0 | F20: 1 | G20: 1 | H20: 1 | I20: 1 | J20: 1 | K20: 1 | L20: 1 | M20: 1 | N20: =(M20*52)*0.8 -> 41.6 | O20: 0
A21: 16 | B21: ORP | C21: ION | D21: ABB, EMERSON, SIEMENS, YOKOGAWA, OTHER | E21: 0 | F21: 1 | G21: 1 | H21: 1 | I21: 1 | J21: 1 | K21: 1 | L21: 1 | M21: 1 | N21: =(M21*52)*0.5 -> 26 | O21: 0
A22: =A21+1 -> 17 | B22: OXYGEN | C22: PARAMAGNETIC | D22: ABB, EMERSON, HORIBA, SERVOMEX, SIEMENS, THERMO, OTHER | E22: 0 | F22: 1 | G22: 1 | H22: 1 | I22: 1 | J22: 1 | K22: 1 | L22: 1 | M22: 1 | N22: =(M22*52)*0.8 -> 41.6 | O22: 0
A23: =A22+1 -> 18 | B23: =B22 -> OXYGEN | C23: ZIRCONIA | D23: ABB, EMERSON, HORIBA, SERVOMEX, SIEMENS, THERMO, OTHER | E23: 0 | F23: 1 | G23: 1 | H23: 1 | I23: 1 | J23: 1 | K23: 1 | L23: 1 | M23: 1 | N23: =(M23*52)*0.4 -> 20.8 | O23: 0
A24: 19 | B24: =B23 -> OXYGEN | C24: QUINKE | D24: ABB, EMERSON, HORIBA, SERVOMEX, SIEMENS, THERMO, OTHER | E24: 0 | F24: 1 | G24: 1 | H24: 1 | I24: 1 | J24: 1 | K24: 1 | L24: 1 | M24: 1 | N24: =(M24*52)*0.5 -> 26 | O24: 0
A25: 20 | B25: =B24 -> OXYGEN | C25: ELECTROCHEMICAL | D25: ABB, EMERSON, HORIBA, SERVOMEX, SIEMENS, TELEDYNE,THERMO, OTHER | E25: 0 | F25: 1 | G25: 1 | H25: 1 | I25: 1 | J25: 1 | K25: 1 | L25: 1 | M25: 1 | N25: =(M25*52)*0.8 -> 41.6 | O25: 0
A26: 21 | B26: PH | C26: ION | D26: ABB, EMERSON, SIEMENS, YOKOGAWA, OTHER | E26: 0 | F26: 1 | G26: 1 | H26: 1 | I26: 1 | J26: 1 | K26: 1 | L26: 1 | M26: 1 | N26: =(M26*52)*0.5 -> 26 | O26: 0
A27: 22 | B27: PHYSICAL PROPERTY | C27: VARIOUS | D27: BENKE | E27: 0 | F27: 1 | G27: 1 | H27: 1 | I27: 1 | J27: 1 | K27: 1 | L27: 1 | M27: 1 | N27: =(M27*52)*0.85 -> 44.2 | O27: 0
A28: 23 | B28: SILICA | C28: ION | D28: HACH | E28: 0 | F28: 1 | G28: 1 | H28: 1 | I28: 1 | J28: 1 | K28: 1 | L28: 1 | M28: 1 | N28: =(M28*52)*0.85 -> 44.2 | O28: 0
A29: 24 | B29: SPECTROMETER -FTIR | C29: LIGHT | D29: YOKOGAWA, OTHER | E29: 0 | F29: 1 | G29: 1 | H29: 1 | I29: 4 | J29: 1 | K29: 1 | L29: 1 | M29: 4 | N29: =(M29*52)*0.85 -> 176.8 | O29: 0
A30: 25 | B30: SPECTROMETER -INFRARED | C30: LIGHT | D30: ABB, EMERSON, HORIBA, SERVOMEX, SIEMENS, THERMO, OTHER | E30: 0 | F30: 1 | G30: 1 | H30: 1 | I30: 3 | J30: 1 | K30: 1 | L30: 1 | M30: 3 | N30: =(M30*52)*0.55 -> 85.8 | O30: 0
A31: 26 | B31: SPECTROMETER -MASS SPECTROMETER | C31: QUADRAPOLE | D31: ABB | E31: 0 | F31: 1 | G31: 1 | H31: 1 | I31: 1 | J31: 1 | K31: 1 | L31: 1 | M31: 1 | N31: =(M31*52)*5 -> 260 | O31: 0
A32: 27 | B32: SPECTROMETER -RAMAN | C32: LIGHT | E32: 0 | F32: 1 | G32: 1 | H32: 1 | I32: 1 | J32: 1 | K32: 1 | L32: 1 | M32: 1 | N32: =(M32*52)*2 -> 104 | O32: 0
A33: 28 | B33: SPECTROMETER -TUNABLE DIODE LASSER | C33: LIGHT | D33: SERVOMEX, SPECTRA SENSORS, THERMO, OTHER | E33: 0 | F33: 1 | G33: 1 | H33: 1 | I33: 1 | J33: 1 | K33: 1 | L33: 1 | M33: 1 | N33: =(M33*52)*0.75 -> 39 | O33: 0
A34: 29 | B34: SPECTROMETER -ULTAVIOLET | C34: LIGHT | D34: ABB, EMERSON, HORIBA, SERVOMEX, SIEMENS, THERMO, OTHER | E34: 0 | F34: 1 | G34: 1 | H34: 1 | I34: 1 | J34: 1 | K34: 1 | L34: 1 | M34: 1 | N34: =(M34*52)*1.25 -> 65 | O34: 0
A35: 30 | B35: TOTAL ORGANIC | C35: LIGHT | D35: BIODETECTOR,HACH,OTHER | E35: 0 | F35: 1 | G35: 1 | H35: 1 | I35: 1 | J35: 1 | K35: 1 | L35: 1 | M35: 1 | N35: =(M35*52)*2 -> 104 | O35: 0
A36: 31 | B36: TURBIDITY | C36: LIGHT | D36: HACH | E36: 0 | F36: 1 | G36: 1 | H36: 1 | I36: 1 | J36: 1 | K36: 1 | L36: 1 | M36: 1 | N36: =(M36*52)*0.5 -> 26 | O36: 0
B38: TOTAL MANPOWER REQUIRED | O38: =SUM(O6:O36)/1564 -> 0.1745524297

Sheet Index

Sheet DropDown (hidden)
A1: CALORIMETER | B1: Select | C1: ComboBox08 | D1: ComboBox09 | E1: ComboBox14 | F1: ComboBox13 | G1: =G2&G3 -> ANAYZER TYPEDETECTOR TYPE | H1: =H2&H3 -> CALORIMETERTHERMAL | I1: =I2&I3 -> CEMSI/R-UV-CHEM | J1: =J2&J3 -> CEMSO2 | K1: CHLORINEVARIOUS | L1: COLORIMETEROPTICAL | M1: CONDUCTIVITYELECTROCHEMICAL | N1: DENSITYVARIOUS | O1: DISSOLVED OXYGENELECTROCHEMICAL | P1: =P2&P3 -> FIXED POINT GAS DETECTIONVARIOUS | Q1: GAS CHROMATOGRAPHFID | R1: GAS CHROMATOGRAPHFPD | S1: =S2&S3 -> GAS CHROMATOGRAPHTCD | T1: GAS CHROMATOGRAPHOTHER | U1: HARDNESSVARIOUS | V1: MELT INDEXVARIOUS | W1: MFR POLYMER ANALYZERVARIOUS | X1: =X2&X3 -> MOISTURE IN LIQUIDVARIOUS | Y1: MOISTURE IN VAPORVARIOUS | Z1: NH3VARIOUS | AA1: OIL IN WATERVARIOUS | AB1: OPACITYLIGHT | AC1: ORPION | AD1: =AD2&AD3 -> OXYGENELECTROCHEMICAL | AE1: OXYGENPARAMAGNETIC | AF1: OXYGENQUINKE | AG1: =AG2&AG3 -> OXYGENZIRCONIA | AH1: PHION | AI1: PHYSICAL PROPERTY VARIOUS | AJ1: PORTABLE GAS DETECTIONELECTROCHEMICAL | AK1: SILICAION | AL1: SPECIFIC GRAIVITY ANALYZERVARIOUS | AM1: SPECTROMETER -FTIRLIGHT | AN1: SPECTROMETER -INFRAREDLIGHT | AO1: SPECTROMETER -MASS SPECTROMETERQUADRAPOLE | AP1: SPECTROMETER -RAMANLIGHT | AQ1: SPECTROMETER -TUNABLE DIODE LASSERLIGHT | AR1: SPECTROMETER -ULTAVIOLETLIGHT | AS1: TAIL GAS ANALYZERCHEMILUMINESENCE | AT1: THERMO CONDUCTIVITY ANALYZERTCD | AU1: =AU2&AU3 -> TITRATORION | AV1: TOTAL HYDROCARBON ANALYZERFID | AW1: TOTAL ORGANIC LIGHT | AX1: TURBIDITYLIGHT | DP1: =BA1 -> 0
A2: CEMS | B2: I/R-UV-CHEM | C2: Select | D2: Select | E2: Select | F2: Select | G2: ANAYZER TYPE | H2: CALORIMETER | I2: CEMS | J2: CEMS | K2: CHLORINE | L2: COLORIMETER | M2: CONDUCTIVITY | N2: DENSITY | O2: DISSOLVED OXYGEN | P2: FIXED POINT GAS DETECTION | Q2: GAS CHROMATOGRAPH | R2: GAS CHROMATOGRAPH | S2: GAS CHROMATOGRAPH | T2: GAS CHROMATOGRAPH | U2: HARDNESS | V2: MELT INDEX | W2: MFR POLYMER ANALYZER | X2: MOISTURE IN LIQUID | Y2: MOISTURE IN VAPOR | Z2: NH3 | AA2: OIL IN WATER | AB2: OPACITY | AC2: ORP | AD2: =AF2 -> OXYGEN | AE2: OXYGEN | AF2: =AG2 -> OXYGEN | AG2: =AE2 -> OXYGEN | AH2: PH | AI2: PHYSICAL PROPERTY | AJ2: PORTABLE GAS DETECTION | AK2: SILICA | AL2: SPECIFIC GRAIVITY ANALYZER | AM2: SPECTROMETER -FTIR | AN2: SPECTROMETER -INFRARED | AO2: SPECTROMETER -MASS SPECTROMETER | AP2: SPECTROMETER -RAMAN | AQ2: SPECTROMETER -TUNABLE DIODE LASSER | AR2: SPECTROMETER -ULTAVIOLET | AS2: TAIL GAS ANALYZER | AT2: THERMO CONDUCTIVITY ANALYZER | AU2: TITRATOR | AV2: TOTAL HYDROCARBON ANALYZER | AW2: TOTAL ORGANIC | AX2: TURBIDITY
A3: CHLORINE | B3: O2 | C3: None | D3: Continuous | E3: Daily | F3: In | G3: DETECTOR TYPE | H3: THERMAL | I3: I/R-UV-CHEM | J3: O2 | K3: VARIOUS | L3: OPTICAL | M3: ELECTROCHEMICAL | N3: VARIOUS | O3: ELECTROCHEMICAL | P3: VARIOUS | Q3: FID | R3: FPD | S3: TCD | T3: OTHER | U3: VARIOUS | V3: VARIOUS | W3: VARIOUS | X3: VARIOUS | Y3: VARIOUS | Z3: VARIOUS | AA3: VARIOUS | AB3: LIGHT | AC3: ION | AD3: ELECTROCHEMICAL | AE3: PARAMAGNETIC | AF3: QUINKE | AG3: ZIRCONIA | AH3: ION | AI3: VARIOUS | AJ3: ELECTROCHEMICAL | AK3: ION | AL3: VARIOUS | AM3: LIGHT | AN3: LIGHT | AO3: QUADRAPOLE | AP3: LIGHT | AQ3: LIGHT | AR3: LIGHT | AS3: CHEMILUMINESENCE | AT3: TCD | AU3: ION | AV3: FID | AW3: LIGHT | AX3: LIGHT
A4: COLORIMETER | C4: Packed | D4: Backflush | E4: Weekly | F4: Out | G4: Variable | H4: 1 | I4: 1 | J4: 1 | K4: 1 | L4: 1 | M4: 1 | N4: 1 | O4: 1 | P4: 1 | Q4: 1 | R4: 1 | S4: 1 | T4: 1 | U4: 1 | V4: 1 | W4: 1 | X4: 1 | Y4: 1 | Z4: 1 | AA4: 1 | AB4: 1 | AC4: 1 | AD4: 1 | AE4: 1 | AF4: 1 | AG4: 1 | AH4: 1 | AI4: 1 | AJ4: 1 | AK4: 1 | AL4: 1 | AM4: 1 | AN4: 1 | AO4: 1 | AP4: 1 | AQ4: 1 | AR4: 1 | AS4: 1 | AT4: 1 | AU4: 1 | AV4: 1 | AW4: 1 | AX4: 1
A5: CONDUCTIVITY | C5: Capillary | D5: Heartcut/ BackFlush | E5: Monthly | G5: Base Manhours | H5: 40 | I5: 100 | J5: 100 | K5: 24 | L5: 20 | M5: 12 | N5: 10 | O5: 14 | P5: 12 | Q5: 130 | R5: 140 | S5: 130 | T5: 200 | U5: 12.5 | V5: 360 | W5: 360 | X5: 22.5 | Y5: 12 | Z5: 36 | AA5: 24 | AB5: 14 | AC5: 12 | AD5: 30 | AE5: 20 | AF5: 20 | AG5: 14 | AH5: 12 | AI5: 50 | AJ5: 2 | AK5: 36 | AL5: 12 | AM5: 100 | AN5: 60 | AO5: 120 | AP5: 75 | AQ5: 12 | AR5: 40 | AS5: 120 | AT5: 24 | AU5: 80 | AV5: 36 | AW5: 60 | AX5: 12
A6: DENSITY | C6: Packed & Capillary | D6: Reverse | E6: User Defined | G6: MHrs-Per-Year | H6: 7 | I6: 7 | J6: 7 | K6: 7 | L6: 5 | M6: 2 | N6: 2 | O6: 3 | P6: 2.5 | Q6: 7 | R6: 7.5 | S6: 5 | T6: 9 | U6: 2.2 | V6: 9 | W6: 9 | X6: 3.4 | Y6: 2 | Z6: 7 | AA6: 3.5 | AB6: 2.5 | AC6: 2.2 | AD6: 7 | AE6: 6 | AF6: 5 | AG6: 4 | AH6: 2.2 | AI6: 7 | AJ6: 2 | AK6: 5 | AL6: 5 | AM6: 7 | AN6: 5 | AO6: 9 | AP6: 7 | AQ6: 7 | AR6: 7 | AS6: 9 | AT6: 5 | AU6: 9 | AV6: 5 | AW6: 9 | AX6: 2.3
A7: DISSOLVED OXYGEN | G7: Blank Cycle | H7: Yes | I7: Yes | J7: Yes | K7: Yes | L7: Yes | M7: Yes | N7: Yes | O7: Yes | P7: Yes | Q7: No | R7: No | S7: No | T7: No | U7: Yes | V7: Yes | W7: Yes | X7: Yes | Y7: Yes | Z7: Yes | AA7: Yes | AB7: Yes | AC7: Yes | AD7: Yes | AE7: Yes | AF7: Yes | AG7: Yes | AH7: Yes | AI7: Yes | AJ7: Yes | AK7: Yes | AL7: Yes | AM7: Yes | AN7: Yes | AO7: Yes | AP7: Yes | AQ7: Yes | AR7: Yes | AS7: Yes | AT7: Yes | AU7: yes | AV7: Yes | AW7: Yes | AX7: Yes
A8: FIXED POINT GAS DETECTION | H8: COSA | I8: ABB | J8: ABB | K8: EMERSON | L8: APPLIED ANALYTICS | M8: ABB | N8: EMERSON | O8: ABB | P8: DETRONICS | Q8: ABB | R8: ABB | S8: ABB | T8: ABB | U8: ABB | V8: DYNISCO | W8: BRUKER | X8: COSA | Y8: COSA | Z8: ABB | AA8: ADVANCED SENSORS | AB8: AMETEK | AC8: ABB | AD8: ABB | AE8: ABB | AF8: ABB | AG8: ABB | AH8: ABB | AI8: BENKE | AJ8: DRAGER | AK8: ABB | AL8: AMETEK | AM8: ABB | AN8: ABB | AO8: ABB | AP8: AIT | AQ8: SERVOMEX | AR8: ABB | AS8: AMETEK | AT8: ABB | AU8: APPLIKON | AV8: ABB | AW8: BIODETECTOR | AX8: HACH
A9: GAS CHROMATOGRAPH | H9: THERMO | I9: CALIFORNIA ANALYTICAL | J9: CALIFORNIA ANALYTICAL | K9: HACH | L9: METROHM-APPLIKON | M9: EMERSON | N9: THERMO SCIENTIFIC | O9: EMERSON | P9: GENERAL MONITOR | Q9: EMERSON | R9: EMERSON | S9: EMERSON | T9: EMERSON | U9: HACH | V9: POLYMER SOLUTIONS | W9: OTHER | X9: PANAMETRICS | Y9: PANAMETRICS | Z9: ECOTECH | AA9: APPLIED ANALYTICS | AB9: DURAG | AC9: EMERSON | AD9: EMERSON | AE9: EMERSON | AF9: EMERSON | AG9: EMERSON | AH9: EMERSON | AI9: OTHER | AJ9: HORIBA | AK9: HACH | AL9: THERMO SCIENTIFIC | AM9: APPLITEK | AN9: CAI | AO9: AMETEK | AP9: EMERSON | AQ9: SPECTRA | AR9: EMERSON | AS9: GALVANIC | AT9: EMERSON | AU9: OTHER | AV9: HORIBA | AW9: HACH | AX9: OTHER
A10: HARDNESS | H10: UNION | I10: EMERSON | J10: EMERSON | K10: SEVERN TRENT | L10: OTHER | M10: METTLER-TOLEDO | N10: TOSHIBA | O10: ENDRESS-HAUSER | P10: MSA | Q10: SIEMENS | R10: SIEMENS | S10: SIEMENS | T10: SIEMENS | U10: THERMO SCIENTIFIC | V10: SENSORS INCORPORATED | X10: SHAW | Y10: SHAW | Z10: NOVA | AA10: FMC | AB10: EMERSON | AC10: SIEMENS | AD10: HORIBA | AE10: HORIBA | AF10: HORIBA | AG10: HORIBA | AH10: SIEMENS | AJ10: LAND | AK10: THERMO | AL10: YOKOGAWA | AM10: BRUKER | AN10: EMERSON | AO10: EXTREL | AP10: HORIBA | AQ10: THERMO | AR10: HORIBA | AS10: OTHER | AT10: HORIBA | AV10: TELEDYNE | AW10: OTHER
A11: MELT INDEX | H11: OTHER | I11: SERVOMEX | J11: SERVOMEX | K11: YOKOGAWA | M11: SIEMENS | N11: YOKOGAWA | O11: HACH | P11: OTHER | Q11: OTHER | R11: YOKOGAWA | S11: YOKOGAWA | T11: YOKOGAWA | U11: WALTRON | V11: OTHER | X11: OTHER | Y11: OTHER | Z11: TELEDYNE | AA11: GE | AB11: HORIBA | AC11: YOKOGAWA | AD11: LAND | AE11: LAND | AF11: LAND | AG11: LAND | AH11: YOKOGAWA | AJ11: MSA | AK11: WALTRON | AL11: OTHER | AM11: CAI | AN11: HORIBA | AO11: MKS INSTRUMENTS | AP11: KOSI | AQ11: OTHER | AR11: YOKOGAWA | AT11: SICK | AV11: OTHER
A12: MFR POLYMER ANALYZER | I12: SICK | J12: SICK | K12: OTHER | M12: YOKOGAWA | N12: OTHER | O12: THERMO SCIENTIFIC | R12: OTHER | S12: OTHER | T12: OTHER | U12: OTHER | Z12: THERMO SCIENTIFIC | AA12: HORIBA | AB12: SICK | AC12: OTHER | AD12: SIEMENS | AE12: SIEMENS | AF12: SIEMENS | AG12: SIEMENS | AH12: OTHER | AJ12: NOVA | AK12: OTHER | AM12: HORIBA | AN12: SERVOMEX | AO12: THERMO SCIENTIFIC | AP12: OTHER | AR12: OTHER | AT12: SIEMENS
A13: MOISTURE IN LIQUID | I13: SIEMENS | J13: SIEMENS | M13: OTHER | O13: YOKOGAWA | Z13: OTHER | AA13: OTHER | AB13: TELEDYNE | AD13: TELEDYNE | AE13: TELEDYNE | AF13: TELEDYNE | AG13: TELEDYNE | AJ13: OTHER | AM13: YOKOGAWA | AN13: SIEMENS | AO13: OTHER | AT13: YOKOGAWA
A14: MOISTURE IN VAPOR | I14: OTHER | J14: OTHER | O14: OTHER | AB14: OTHER | AD14: THERMO | AE14: THERMO | AF14: THERMO | AG14: THERMO | AM14: OTHER | AN14: YOKOGAWA | AT14: OTHER
A15: NH3 | AD15: YOKOGAWA | AE15: YOKOGAWA | AF15: YOKOGAWA | AG15: YOKOGAWA | AN15: OTHER
A16: OIL IN WATER | AD16: OTHER | AE16: OTHER | AF16: OTHER | AG16: OTHER
A17: OPACITY
A18: ORP
A19: OXYGEN
A20: PH
A21: PHYSICAL PROPERTY
A22: PORTABLE GAS DETECTION
A23: SILICA
A24: SPECIFIC GRAIVITY ANALYZER
A25: SPECTROMETER -FTIR
A26: SPECTROMETER -INFRARED
A27: SPECTROMETER -MASS SPECTROMETER
A28: SPECTROMETER -RAMAN
A29: SPECTROMETER -TUNABLE DIODE LASSER
A30: SPECTROMETER -ULTAVIOLET
A31: TAIL GAS ANALYZER
A32: THERMO CONDUCTIVITY ANALYZER
A33: TITRATOR
A34: TOTAL HYDROCARBON ANALYZER
A35: TOTAL ORGANIC
A36: TURBIDITY

Sheet Settings (hidden)
B2: Specialist | C2: 15000 | D2: ="=(Total Manhours)/"&C2&")" -> =(Total Manhours)/15000)
B3: Sr. Analyer Tech | C3: 7500 | D3: ="=(Total Manhours)/"& C3 & ")" -> =(Total Manhours)/7500)
B4: AX Tech | C4: 5000 | D4: ="=(Total Manhours)/" &C4 &")" -> =(Total Manhours)/5000)
B5: Jr. Techs Hrs | C5: 1768 | D5: ="=(Total Manhours)-((Specialist + Sr. Analyer Tech + AX Tech)*" &C5& ")" -> =(Total Manhours)-((Specialist + Sr. Analyer Tech + AX Tech)*1768)
B6: Jr Techs | C6: 1768 | D6: ="=(Jr Techs Hrs)/" & C6 &")" -> =(Jr Techs Hrs)/1768)
B7: Engineering Staff | C7: 30000 | D7: =(Total Manhours / 30000)
B8: Flush Values
B9: Continuous | C9: 0
B10: Backflush | C10: 10
B11: Heartcut/Backflush | C11: 40
B12: Reverse | C12: 40
B14: Column Values
B15: None | C15: 0
B16: Packed | C16: 10
B17: Capillary | C17: 30
B18: Packed & Capillary | C18: 60
B20: Cycle Time
B21: =0 | C21: 0
B22: > 0 and <=5 mins | C22: 30
B23: > 5 mins | C23: 10
B25: Shelter
B26: In | C26: 0
B27: Out | C27: 30
B29: Age of Analyzers
B30: Less then 2 Yrs | C30: 1.25 | D30: Less then 2 Yrs
B31: 2 to 8 Yrs | C31: 1 | D31: 2 to 8 Yrs
B32: Greater then 9yrs | C32: 1.35 | D32: Greater then 9yrs
B37: Frequency
B38: Daily | C38: 80
B39: Weekly | C39: 60
B40: Monthly | C40: 20

Sheet Analyzers (hidden)
A1: Facility Name | B1: Location | C1: Date | D1: Compiled by | E1: Report Comments | F1: Project Comments | AM1: =IFERROR(60/AL1,0) -> 0 | AN1: =HLOOKUP(D1&F1,DropDown!$H$1:$BE$4,4,FALSE) ->  | AP1: =(Azer($E1,$D1,$F1)+CycleTime($M1)+Cols($N1)+flush($O1)+($P1*10)+(($Q1+$R1+$S1+$T1+$U1+$V1+$W1+$X1+$Y1+$Z1)*10)+(($AB1+$AC1+$AD1)*10)+($AF1*20)+($AG1*50)+($AH1*80)+($AH1*80)+($AI1*80)+shelter($AJ1)+AM1)/10*$AN1*AA1 ->  | AQ1: =HLOOKUP($D1&$F1,DropDown!$H$1:$BE$6,6,FALSE) ->  | AR1: =$AQ1*$AP1*L1 ->  | AS1: =HLOOKUP($D1&$F1,DropDown!$H$1:$BE$6,5,FALSE) ->  | AT1: =$L1*$AR1 ->  | AV1: =$AT1/15000 ->  | AW1: =$AT1/7000 ->  | AX1: =$AT1/5000 ->  | AY1: =$AT1-(($AV1+$AW1+$AX1)*1768) ->  | AZ1: =$AY1/1768 ->  | BA1: =$AT1/30000 ->  | DA1: =B1 -> Location | DB1: =L1 -> 0 | DC1: =C1 -> Date | DD1: =D1 -> Compiled by | DE1: =F1 -> Project Comments | DF1: =H1 -> 0 | DG1: =J1 -> 0 | DH1: =AP1 ->  | DI1: =AR1 ->  | DJ1: =AT1 ->  | DL1: =AV1 ->  | DM1: =AW1 ->  | DN1: =AX1 ->  | DO1: =BA1 ->  | DP1: =AZ1 -> 
B3: 2 | C3: 3 | D3: 4 | E3: 5 | F3: 6 | G3: 7 | H3: 8 | I3: 9 | J3: 10 | K3: 11 | L3: 12 | M3: 13 | N3: 14 | O3: 15 | P3: 16 | Q3: 17 | R3: 18 | S3: 19 | T3: 20 | U3: 21 | V3: 22 | W3: 23 | X3: 24 | Y3: 25 | Z3: 26 | AA3: 27 | AB3: 28 | AC3: 29 | AD3: 30 | AE3: 31 | AF3: 32 | AG3: 33 | AH3: 34 | AI3: 35 | AJ3: 36 | AK3: 37 | AL3: 38 | AM3: 39 | DI3: =SUM(DI5:DI5000) -> 0 | DJ3: =SUM(DJ5:DJ4963) -> 0 | DL3: =IFERROR(#REF!/15000,"") ->  | DM3: =IFERROR(#REF!/7000,"") ->  | DN3: =IFERROR(#REF!/5000,"") ->  | DO3: =IFERROR(#REF!-((#REF!+#REF!+#REF!)*1768),"") ->  | DP3: =IFERROR(#REF!/1768,"") -> 
A4: =B4&" - " &C4& " - " & D4 -> Analyzer # - Analyzer Location - Analyzer Type | B4: Analyzer # | C4: Analyzer Location | D4: Analyzer Type | E4: # Detectors | F4: Detector 1 | G4: Manufacture 1 | H4: Detector 2 | I4: Manufacture 2 | J4: Detector 3 | K4: Manufacture 3 | L4: Qty | M4: Cycle Time | N4: Columns | O4: Application | P4: # Stream | Q4: Components 1 | R4: Components 2 | S4: Components 3 | T4: Components 4 | U4: Components 5 | V4: Components 6 | W4: Components 7 | X4: Components 8 | Y4: Components 9 | Z4: Components 10 | AA4: Age of Analyzers | AB4: Primary Gas | AC4: Primary Liquid | AD4: Primary Solid | AE4: # Sample | AF4: Sample Gas | AG4: Sample Liquid | AH4: Sample Both | AI4: Sample Solid | AJ4: Shelter | AK4: Freq | AL4: Freq# | AM4: Freq Factor | AN4: Factor for Difficulty | AP4: Difficulty Factor | AQ4: MHr Factor | AR4: Man hrs to Maintain | AS4: Base Man hrs | AT4: Total Man hrs | AV4: Specialist | AW4: Sr. Analyer Tech | AX4: AX Tech | AY4: Jr. Techs Hrs | AZ4: Jr Techs | BA4: Eng. Staff | DA4: =B4 -> Analyzer # | DB4: =L4 -> Qty | DC4: =C4 -> Analyzer Location | DD4: =D4 -> Analyzer Type | DE4: =F4 -> Detector 1 | DF4: =H4 -> Detector 2 | DG4: =J4 -> Detector 3 | DH4: =AP4 -> Difficulty Factor | DI4: =AR4 -> Man hrs to Maintain | DJ4: =AT4 -> Total Man hrs | DL4: =AV4 -> Specialist | DM4: =AW4 -> Sr. Analyer Tech | DN4: =AX4 -> AX Tech | DO4: =BA4 -> Eng. Staff | DP4: =AZ4 -> Jr Techs

Sheet Report
B2: Facility Name
B3: Location
B4: Date
B5: Compiled By
B6: Comments
E9: Engineering Staff | F9: Specialist | G9: Sr. Analyzer Technicians | H9: AX Technicians | I9: Jr Techs | K9: Total Manhours
E10: . | F10: . | G10: . | H10: . | I10: .
B12: Analyzer Details
B13: Analyzer No. | C13: Analyzer Location | D13: Analyzer Type | E13: Detector Type 1 | F13: Detector Type 2 | G13: Detector Type 3 | I13: Difficulty Factor | J13: Manhours per Year to Maintain | K13: Manhours
